[Event "Czech Open-GM 2022"]
[Site "Pardubice"]
[Date "2022.07.26"]
[Round "5.7"]
[White "Simek, Petr"]
[Black "Livaic, Leon"]
[Result "1-0"]
[ECO "E10"]
[WhiteElo "2348"]
[BlackElo "2576"]
[Annotator "TA"]
[PlyCount "113"]
[EventDate "2022.07.22"]
[EventType "swiss"]
[EventCountry "CZE"]
[SourceTitle "playchess.com"]
[Source "ChessBase"]
[SourceQuality "1"]
[TimeControl "40/5400+30:1800+30"]

{[%evp 9,113,0,0,0,13,19,42,42,52,55,52,43,39,45,50,50,46,38,35,35,38,21,42,29,32,16,35,23,33,39,91,91,110,91,94,87,103,93,80,79,79,79,89,89,85,82,75,63,218,220,201,203,160,139,143,20,17,24,110,120,118,44,123,118,122,121,144,137,284,279,267,266,258,251,377,335,413,383,429,427,411,374,506,469,615,626,625,609,607,595,29969,29970,29967,29968,29974,29975,29974,29968,29978,29979,29979,29980,29980,29981,29979,29980]} 1. d4 {[%emt 0:03:27]} Nf6 {[%emt 0:00:06]} 2. c4 {[%emt 0:00:06]} e6 {[%emt 0:00:04]} 3. Nf3 a6 {[%emt 0:00:19]} 4. Nc3 {[%emt 0:04:02]} d5 {[%emt 0:00:05]} 5. c5 {[%emt 0:00:08]} b6 {[%emt 0:00:08]} 6. cxb6 {[%emt 0:00:08] D37: Queen's Gambit Declined: 5 Bf4.} c5 {[%emt 0:00:08]} (6... Nbd7 7. bxc7 Qxc7 8. Bd2 $14) 7. Bf4 {[%emt 0:04:50] Threatens to win with Bc7.} Qxb6 {[%emt 0:00:42] aiming for ...cxd4.} 8. Na4 $1 {[%emt 0:00:47] [#] White is slightly better.} Qa7 $146 {[%emt 0:09:45]} ({Predecessor:} 8... Qa5+ 9. Bd2 Qc7 10. Nxc5 Bxc5 11. dxc5 O-O 12. Rc1 Nc6 13. e3 Rb8 14. b3 e5 {0-1 (40) Minzer,C (2445)-Camacho Collados,M (2409) Ibiza 2021}) 9. dxc5 {[%emt 0:08:51]} Bxc5 {[%emt 0:06:38]} 10. Nxc5 {[%emt 0:00:10]} Qxc5 {[%emt 0:00:04]} 11. Rc1 {[%emt 0:01:08]} Qb4+ {[%emt 0:00:52]} 12. Qd2 {[%emt 0:07:20]} Qxd2+ {[%emt 0:00:05]} 13. Nxd2 {[%emt 0:00:08]} O-O 14. e3 {[%emt 0:00:17]} a5 {[%emt 0:16:46]} 15. Bd6 {[%emt 0:39:04]} Re8 {[%emt 0:01:29]} 16. Bb5 {[%emt 0:00:48] A strong pair of Bishops.} Bd7 {[%emt 0:00:14]} 17. Bxd7 {[%emt 0:09:52]} Nbxd7 {[%emt 0:00:07][%cal Bb8d7,Bd7e5,Be5d3][%mdl 32]} 18. a4 {[%emt 0:00:06]} Ra6 {[%emt 0:02:11]} 19. Ba3 {[%emt 0:01:12]} e5 {[%emt 0:01:38]} (19... Ne4 $14) 20. Ke2 $16 {[%emt 0:06:14]} e4 {[%emt 0:03:10]} 21. Rc7 $1 {[%emt 0:01:21]} Ne5 {[%emt 0:11:41]} 22. Rhc1 $1 {[%emt 0:00:47][%cal Bh1c1,Bc1c6,Bc6d6,Bd6d4][%mdl 32]} Nd3 {[%emt 0:05:59]} 23. R1c6 {[%emt 0:00:07]} Raa8 {[%emt 0:00:08]} 24. h3 {[%emt 0:00:55]} h5 {[%emt 0:06:43]} 25. b3 {[%emt 0:01:06]} d4 {[%emt 0:13:12]} 26. Rd6 {[%emt 0:08:45] Against Nd5} (26. exd4 Nd5 27. Bd6 Nxc7 28. Bxc7 Ra7 $15) (26. Nxe4 Nxe4 27. Kxd3 dxe3 28. fxe3 (28. Kxe3 Nc5+ 29. Kd2 Rad8+ 30. Kc3 Ne4+ 31. Kb2 Nxf2 $14) 28... Rad8+ 29. Kc4 Nd2+ 30. Kb5 Nxb3 $14) 26... dxe3 {[%emt 0:00:26]} 27. fxe3 {[%emt 0:00:05]} Re5 {[%emt 0:02:17]} 28. Rc4 {[%emt 0:01:47][%cal Od2e4]} Ne8 $2 {[%emt 0:06:08]} (28... Rae8 $14) 29. Rdd4 $18 {[%emt 0:00:53]} f5 {[%emt 0:00:16]} 30. g4 $1 {[%emt 0:00:05]} Nf6 {[%emt 0:04:32]} (30... hxg4 31. hxg4 fxg4 32. Nxe4) 31. gxf5 {[%emt 0:00:12][%cal Rd2e4]} Rae8 {[%emt 0:00:29] [#]} 32. Bd6 {[%emt 0:01:03]} ({But not} 32. Nxe4 $6 Nxe4 33. Kxd3 Nf2+ 34. Kc2 Nxh3 $14) (32. h4 $1 $16) 32... Rxf5 $11 {[%emt 0:00:17] White must now prevent ...Rf2+.} 33. Nxe4 {[%emt 0:00:05]} Nc1+ {[%emt 0:01:03]} 34. Rxc1 $16 {[%emt 0:00:38]} Nxe4 {[%emt 0:00:02] [#]} 35. Bf4 {[%emt 0:01:00]} (35. Bc7 $1 $16) 35... g5 {[%emt 0:02:27] [#]} (35... Nc5 $1 $14) 36. Rcc4 $1 {[%emt 0:00:05]} Nf6 {[%emt 0:04:31]} (36... Nc5 37. Bd6) 37. Bd6 {[%emt 0:00:06]} g4 {[%emt 0:00:34]} 38. hxg4 {[%emt 0:00:34]} (38. Rf4 Rxf4 39. Bxf4 (39. Rxf4 Ne4 $11) 39... gxh3 $16) 38... hxg4 {[%emt 0:00:25]} (38... Nxg4 $16 39. Bf4 Nf6) 39. Rf4 $18 {[%emt 0:00:25]} Rxf4 {[%emt 0:00:22]} 40. Rxf4 {[%emt 0:00:13][%mdl 4096] Endgame KRB-KRN} ({Don't do} 40. Bxf4 $6 Kf7 41. Rc7+ Ke6 $18) 40... Re6 {[%emt 0:00:42]} 41. Bc7 {[%emt 0:06:53]} g3 {[%emt 0:00:06]} (41... Nd5 $142) 42. Bxa5 {[%emt 0:01:55]} g2 {[%emt 0:01:36]} 43. Kf2 {[%emt 0:00:12]} Nd5 {[%emt 0:00:45]} 44. Rg4+ {[%emt 0:00:08]} Kf7 {[%emt 0:00:03]} 45. Bd2 {[%emt 0:01:10]} Rc6 {[%emt 0:00:24]} 46. Rxg2 {[%emt 0:01:23]} Rb6 {[%emt 0:00:47]} 47. Rg5 {[%emt 0:01:39]} Nf6 {[%emt 0:00:05] ...Ne4+ is the strong threat.} 48. Rb5 {[%emt 0:00:04]} Ne4+ {[%emt 0:00:09]} 49. Ke2 {[%emt 0:00:07]} Rxb5 {[%emt 0:00:05]} 50. axb5 {[%emt 0:00:05] KB-KN. White mates.} Ke6 {[%emt 0:00:02]} 51. Bb4 {[%emt 0:05:05]} Kd5 {[%emt 0:00:17]} 52. Kf3 {[%emt 0:00:31]} Nf6 {[%emt 0:00:25]} 53. Be7 {[%emt 0:03:42]} Ne8 {[%emt 0:00:26]} 54. e4+ {[%emt 0:00:42]} Ke6 {[%emt 0:00:04] [#]} 55. b6 $1 {[%emt 0:01:55]} Kd7 {[%emt 0:00:04]} 56. Bc5 {[%emt 0:00:06]} Kc6 {[%emt 0:00:04]} 57. b4 {[%emt 0:00:04] Weighted Error Value: White=0.08 (flawless) /Black=0.42} 1-0

[Event "Czech Open-GM 2022"]
[Site "Pardubice"]
[Date "2022.07.26"]
[Round "5.8"]
[White "Bronstein, Or"]
[Black "Sarkar, Justin"]
[Result "1/2-1/2"]
[ECO "D87"]
[WhiteElo "2476"]
[BlackElo "2346"]
[Annotator "TA"]
[PlyCount "75"]
[EventDate "2022.07.22"]
[EventType "swiss"]
[EventCountry "CZE"]
[SourceTitle "playchess.com"]
[Source "ChessBase"]
[SourceQuality "1"]
[TimeControl "40/5400+30:1800+30"]

{[%evp 29,75,31,85,71,78,68,98,93,88,86,111,69,72,60,73,60,61,58,72,-25,-28,-154,-144,-329,0,0,0,0,0,0,0,0,0,0,0,0,0,0,0,0,0,0,0,0,0,0,0,0]} 1. d4 {[%emt 0:00:08]} Nf6 {[%emt 0:00:29]} 2. c4 {[%emt 0:00:24]} g6 {[%emt 0:00:40]} 3. Nc3 {[%emt 0:00:09]} d5 {[%emt 0:00:12]} 4. cxd5 {[%emt 0:00:06]} Nxd5 {[%emt 0:00:05]} 5. e4 {[%emt 0:00:07]} Nxc3 {[%emt 0:00:07]} 6. bxc3 {[%emt 0:00:01]} Bg7 {[%emt 0:00:15]} 7. Bc4 {[%emt 0:00:35]} O-O {[%emt 0:00:55]} 8. Ne2 {[%emt 0:00:20]} c5 {[%emt 0:02:58]} 9. O-O {[%emt 0:00:50]} Nc6 {[%emt 0:00:09]} 10. Be3 {[%emt 0:00:11]} Bg4 {[%emt 0:03:06]} 11. f3 {[%emt 0:00:33]} Na5 {[%emt 0:00:24]} 12. Bxf7+ {[%emt 0:01:30]} Rxf7 {[%emt 0:00:05]} 13. fxg4 {[%emt 0:00:06]} Rxf1+ {[%emt 0:00:07]} 14. Kxf1 {[%emt 0:00:07]} cxd4 {[%emt 0:06:11]} 15. cxd4 {[%emt 0:00:32]} Qd6 {[%emt 0:00:09]} (15... Qb6 $14) 16. Qa4 {D88: Exchange Grünfeld: Classical Line: 10 Be3 cxd4 11 cxd4.} b6 {[%emt 0:09:10]} (16... Qxh2 17. Qxa5 Rf8+ 18. Ke1 Qh1+ 19. Bg1) 17. e5 {[%emt 0:31:43]} Qe6 {[%emt 0:02:00]} 18. h3 {[%emt 0:03:09] White is better.} Nc4 {[%emt 0:01:00] [#]} 19. Qb3 $146 {[%emt 0:09:15]} ({Predecessor:} 19. Bg5 h6 20. Bh4 Qd5 21. Kg1 e6 22. Bf2 b5 23. Qa6 Rf8 24. Nc3 Qd7 25. Qxb5 {1-0 (42) Galovic,S (2127)-Koval,D (2127) Slovakia 2010}) 19... a5 {[%emt 0:00:25]} 20. Kg1 {[%emt 0:04:15] [#] And now Nf4 would win.} a4 {[%emt 0:00:27]} 21. Qd3 {[%emt 0:04:07]} b5 {[%emt 0:02:45]} 22. Qe4 {[%emt 0:09:33]} Rd8 {[%emt 0:05:57]} 23. Bg5 {[%emt 0:08:07]} b4 {[%emt 0:03:45]} 24. Qb7 {[%emt 0:08:07]} (24. Rb1 $16 h6 25. Bc1) 24... Nxe5 $1 $11 {[%emt 0:03:52]} 25. Nf4 {[%emt 0:02:17]} (25. Bxe7 Re8 26. dxe5 Qxe5 $19) (25. Qxb4 $2 {[#]} Nf3+ $1 {[%mdl 512]} 26. Kh1 (26. gxf3 $2 Qxe2 27. Qd2 Bxd4+ 28. Kh1 Qxf3+ 29. Qg2 Qxg2+ 30. Kxg2 Bxa1 $19) 26... Nxg5 $19) (25. Qxe7 Qxe7 26. Bxe7 Re8 27. dxe5 (27. Bxb4 $2 Nc6 $19) 27... Rxe7 $17) (25. dxe5 $11 {was the only way to keep the balance.} Qxe5 26. Re1 Qxg5 27. Qxb4) 25... Qc4 $17 {[%emt 0:07:11]} (25... Qd7 26. Qxd7 Nxd7 27. Ne6 $15) 26. Kh2 $2 {[%emt 0:07:06]} (26. dxe5 $2 Qd4+ 27. Kh2 Qxa1 28. Qxe7 Rf8 29. Qe6+ Kh8 $19) (26. Re1 $17 Qxd4+ 27. Kh1) 26... Nf7 $2 {[%emt 0:08:16]} (26... Qxd4 27. Rf1 $15) (26... Rxd4 $19 27. Qa8+ (27. Qb8+ $2 Kf7 $19) 27... Kf7) 27. Bxe7 $11 {[%emt 0:03:27] The position is equal.} Qxd4 {[%emt 0:11:08]} 28. Rf1 {[%emt 0:00:09]} Be5 {[%emt 0:00:16]} 29. Bxd8 {[%emt 0:03:39]} Nxd8 {[%emt 0:04:41]} ({Much less strong is} 29... Bxf4+ 30. g3 Nxd8 31. Qb5 $14 (31. Rxf4 Qxf4 32. Qd5+ Qf7 $11) (31. Qe7 Qd2+ 32. Kh1 Qd5+ 33. Kh2 Qd2+ 34. Kh1 Qd5+ 35. Kh2 Qd2+ $11)) 30. Qe7 {[%emt 0:00:02] Strongly threatening g3.} Bxf4+ {[%emt 0:08:51]} 31. g3 {[%emt 0:00:01]} Qd2+ {[%emt 0:01:54]} 32. Kh1 {[%emt 0:00:02] Black must now prevent Qe8+.} Qd5+ {[%emt 0:00:31]} 33. Kg1 {[%emt 0:01:39]} Qd3 {[%emt 0:00:48]} 34. gxf4 {[%emt 0:01:14] Threatens to win with Qe8+. Dancing on a razor blade.} Qg3+ {[%emt 0:00:04]} 35. Kh1 {[%emt 0:00:06]} Qxh3+ {[%emt 0:00:03]} 36. Kg1 {[%emt 0:00:05]} Qg3+ {[%emt 0:00:22]} 37. Kh1 {[%emt 0:00:03]} Qh3+ {[%emt 0:00:09]} 38. Kg1 {[%emt 0:00:02] Weighted Error Value: White=0.34/Black=0.21 (precise)} 1/2-1/2

[Event "Czech Open-GM 2022"]
[Site "Pardubice"]
[Date "2022.07.26"]
[Round "5.9"]
[White "Farkas, Gabor"]
[Black "Pantzar, Milton"]
[Result "1/2-1/2"]
[ECO "D30"]
[WhiteElo "2335"]
[BlackElo "2447"]
[Annotator "TA"]
[PlyCount "87"]
[EventDate "2022.07.22"]
[EventType "swiss"]
[EventCountry "CZE"]
[SourceTitle "playchess.com"]
[Source "ChessBase"]
[SourceQuality "1"]
[TimeControl "40/5400+30:1800+30"]

{[%evp 22,87,22,16,16,14,12,18,14,10,20,0,0,0,25,27,22,34,45,49,44,47,26,41,40,7,28,25,27,15,22,0,20,-9,-9,-9,0,-18,0,-21,9,0,14,-3,-4,0,0,-2,0,0,0,0,0,0,0,0,0,0,0,0,0,0,0,0,0,0,0,0]} 1. c4 {[%emt 0:00:03]} e6 {[%emt 0:01:07]} 2. Nf3 {[%emt 0:01:25]} d5 {[%emt 0:00:55]} 3. d4 {[%emt 0:00:58]} Nf6 {[%emt 0:00:15]} 4. Bg5 {[%emt 0:00:27]} Be7 {[%emt 0:01:59]} 5. e3 {[%emt 0:03:18]} c6 {[%emt 0:02:52]} 6. Nc3 {[%emt 0:04:59]} Nbd7 {[%emt 0:02:36]} 7. cxd5 {[%emt 0:02:15]} exd5 {[%emt 0:01:27]} 8. Bd3 {[%emt 0:00:29]} O-O {[%emt 0:00:48]} 9. Qc2 {[%emt 0:02:08]} h6 {[%emt 0:02:57]} 10. Bh4 {[%emt 0:05:52]} Ne8 {[%emt 0:02:13]} 11. Bg3 {[%emt 0:04:26]} Bd6 {[%emt 0:04:06]} 12. O-O {[%emt 0:07:01]} Bxg3 {[%emt 0:00:44] D36: Queen's Gambit Declined: Exchange Variation: Main line (5 Bg5 c6 6 Qc2).} 13. hxg3 {[%emt 0:01:43]} Nd6 {[%emt 0:01:40]} 14. b4 {[%emt 0:01:44]} Nb6 {[%emt 0:09:12] [#]} 15. Ne5 $146 {[%emt 0:11:20]} ({Predecessor:} 15. b5 Be6 16. bxc6 bxc6 17. Na4 Nbc4 18. Nc5 Rb8 19. Ne5 Nxe5 20. dxe5 Nc4 21. Bxc4 dxc4 22. Nxe6 fxe6 23. Qxc4 {1-0 (32) Hansen,E (2606)-Rustemov,A (2525) Chess.com INT 2022}) 15... Nbc4 {[%emt 0:08:03]} 16. Nxc4 {[%emt 0:08:44]} dxc4 {[%emt 0:00:29]} 17. Be2 {[%emt 0:00:21]} Re8 {[%emt 0:04:48]} 18. a4 {[%emt 0:05:34]} Bf5 {[%emt 0:08:26]} 19. Qa2 {[%emt 0:00:48]} Qb6 {[%emt 0:04:59]} 20. Qa3 {[%emt 0:04:47]} a5 {[%emt 0:07:51]} 21. bxa5 {[%emt 0:02:38]} Qc7 {[%emt 0:03:07]} 22. Qb4 {[%emt 0:00:31]} Rxa5 {[%emt 0:01:44]} 23. Rfc1 {[%emt 0:08:09]} ({Much worse is} 23. Bxc4 c5 24. dxc5 Qxc5 25. Qxc5 Rxc5 $15) 23... c5 {[%emt 0:03:37]} 24. dxc5 {[%emt 0:01:57]} Qxc5 {[%emt 0:01:18]} 25. Qb2 {[%emt 0:04:46]} Qe5 {[%emt 0:01:22] The position is equal.} 26. Qd2 {[%emt 0:01:30]} Rc5 {[%emt 0:02:21]} 27. Ra3 {[%emt 0:04:53]} Rec8 {[%emt 0:02:20]} 28. Bf3 {[%emt 0:01:23]} Bd3 {[%emt 0:04:13]} 29. Nd1 {[%emt 0:03:16]} g5 {[%emt 0:05:36]} 30. g4 {[%emt 0:01:24]} f5 {[%emt 0:04:22]} (30... h5 $5) 31. gxf5 {[%emt 0:00:54]} Bxf5 {[%emt 0:00:10]} 32. Qd4 {[%emt 0:00:50]} Qxd4 {[%emt 0:01:40]} 33. exd4 {[%emt 0:00:01]} Ra5 {[%emt 0:00:11] ...b5 is the strong threat.} 34. Ne3 {[%emt 0:00:38]} b5 {[%emt 0:02:23] [#] Threatens to win with ...b4.} 35. Nxf5 {[%emt 0:02:04]} Nxf5 {[%emt 0:00:07]} 36. Bg4 $1 {[%emt 0:02:24]} Rf8 {[%emt 0:01:54]} 37. Rf3 $1 {[%emt 0:00:42]} bxa4 {[%emt 0:02:25]} 38. Rxc4 {[%emt 0:00:02]} a3 {[%emt 0:00:37] [#] Strongly threatening ...a2.} 39. Bxf5 {[%emt 0:00:08]} Rfxf5 {[%emt 0:01:34]} 40. Rxf5 {[%emt 0:00:30]} Rxf5 {[%emt 0:00:30]} 41. Ra4 {[%emt 0:31:43] Prevents Ra5.} Rd5 42. Rxa3 Rxd4 {[%emt 0:31:22]} 43. Ra7 {[%emt 0:00:47]} Rf4 {[%emt 0:00:08]} 44. g3 {[%emt 0:00:36] Weighted Error Value: White=0.06 (flawless) /Black=0.05 (flawless)} 1/2-1/2

[Event "Czech Open-GM 2022"]
[Site "Pardubice"]
[Date "2022.07.26"]
[Round "5.10"]
[White "Swicarz, Maciej"]
[Black "Dobrowolski, Piotr"]
[Result "0-1"]
[ECO "A07"]
[WhiteElo "2335"]
[BlackElo "2423"]
[Annotator "TA"]
[PlyCount "94"]
[EventDate "2022.07.22"]
[EventType "swiss"]
[EventCountry "CZE"]
[SourceTitle "playchess.com"]
[Source "ChessBase"]
[SourceQuality "1"]
[TimeControl "40/5400+30:1800+30"]

{[%evp 15,94,0,0,-41,-32,-90,-79,-83,-61,-174,-133,-131,-137,-140,-123,-136,-108,-101,-100,-167,-179,-154,-113,-120,-100,-193,-116,-136,-119,-212,-209,-292,-318,-354,-175,-181,-179,-257,-189,-294,-305,-454,-431,-448,-294,-308,-300,-283,-279,-410,-311,-391,-393,-387,-387,-369,-379,-364,-349,-416,-155,-141,-157,-145,-128,-118,-106,-129,-61,-67,0,0,0,-24,-53,-882,-870,-850,-830,-804,-743]} 1. d3 {[%emt 0:00:04]} d5 {[%emt 0:05:21]} 2. Nd2 {[%emt 0:01:29]} e5 {[%emt 0:03:38]} 3. e4 {[%emt 0:00:18]} Ne7 {[%emt 0:00:07]} 4. g3 {[%emt 0:02:48]} Nbc6 {[%emt 0:00:49]} 5. Bg2 {[%emt 0:00:33]} g6 {[%emt 0:00:55][%cal Bg7g6,Bg6g5][%mdl 32]} 6. Ngf3 {[%emt 0:02:51]} Bg7 {[%emt 0:00:17]} 7. O-O {[%emt 0:00:04]} O-O {[%emt 0:00:06]} 8. c3 {[%emt 0:00:26]} a5 {[%emt 0:01:20] [#]} 9. h4 $146 {[%emt 0:05:48] A07: Réti Opening: New York and Capablanca Systems.} ({Predecessor:} 9. Re1 Re8 10. Qc2 h6 11. b3 Be6 12. Bb2 Qd7 13. a3 Bh3 14. b4 Bxg2 15. Kxg2 Rad8 16. b5 dxe4 17. dxe4 {0-1 (43) Svidler,P (2723)-Vidit,S (2726) chess24.com INT 2020}) 9... h6 {[%emt 0:01:44]} 10. h5 {[%emt 0:17:50]} (10. Re1 $15) 10... g5 $1 $17 {[%emt 0:06:32]} 11. Nh2 {[%emt 0:00:20] Black is better.} f5 {[%emt 0:04:47]} 12. f4 {[%emt 0:07:32]} (12. exd5 $15 Nxd5 13. Qb3) 12... dxe4 {[%emt 0:14:06]} 13. dxe4 {[%emt 0:02:38]} exf4 {[%emt 0:00:37]} 14. gxf4 {[%emt 0:01:21]} gxf4 {[%emt 0:05:26]} 15. Rxf4 {[%emt 0:02:10]} Be6 {[%emt 0:10:13]} 16. Qe2 {[%emt 0:04:30]} Qd6 {[%emt 0:02:27]} 17. Ndf1 {[%emt 0:03:30]} (17. Ndf3 $17) 17... Ne5 $19 {[%emt 0:04:46]} 18. Be3 {[%emt 0:03:08]} Nd3 {[%emt 0:05:22]} 19. Rf3 {[%emt 0:04:59]} Rad8 {[%emt 0:04:42] And now ...f4 would win. 0x0.0002de65b101dp-1022s more active pieces. The white rooks are badly placed.} 20. Kh1 {[%emt 0:04:31]} (20. exf5 $17 {was necessary.} Nxf5 21. Rd1) 20... f4 {[%emt 0:05:09]} (20... fxe4 21. Rxf8+ Rxf8 22. Bxe4 $17) (20... Bc4 $19 {Strongly threatening ...Ne5.} 21. Qc2 f4) 21. Bd4 $17 {[%emt 0:04:12]} Ne5 $36 {[%emt 0:00:09][%mdl 2048] Black is really pushing.} (21... Bxd4 22. Rxd3 Nc6 23. Nd2 $18 (23. cxd4 Nxd4 24. Qf2 Qe5 $18)) 22. Rf2 {[%emt 0:00:37] [#]} (22. Bxe5 $17 Bxe5 23. Bh3) 22... N7c6 $1 $19 {[%emt 0:02:51][%cal Be7c6,Bc6e5,Be5d3][%mdl 32]} 23. Bxe5 {[%emt 0:07:35]} Nxe5 {[%emt 0:00:17]} (23... Bxe5 24. Qb5 $17) 24. Bf3 {[%emt 0:00:23]} Qd3 {[%emt 0:11:11]} (24... Bc4 $2 25. Qc2 $19) (24... Qe7 $142 {aiming for ...Qh4.} 25. Rg2 Kh8) 25. Qxd3 {[%emt 0:02:44]} Rxd3 {[%emt 0:00:18]} 26. Kg2 {[%emt 0:03:05]} (26. a3 {is a better defense.}) 26... Rd7 {[%emt 0:01:38]} 27. Rb1 {[%emt 0:04:48]} (27. Bd1 $142) 27... Bf6 {[%emt 0:00:52][%cal Bg7f6,Bf6h4,Bh4e1,Be1c3][%mdl 32] A strong pair of Bishops.} (27... Bxa2 $2 28. Ra1 Be6 29. Rxa5 $19) 28. b3 {[%emt 0:01:09]} (28. Kh1 {was called for.}) 28... Nd3 {[%emt 0:00:49][%csl LRc3,LRf2]} 29. Rc2 {[%emt 0:00:37]} Bh4 {[%emt 0:01:14]} 30. Bg4 {[%emt 0:04:26]} Bxg4 {[%emt 0:01:02]} ({Worse is} 30... Rg7 31. Kh3 Bxg4+ 32. Nxg4 $17) 31. Nxg4 {[%emt 0:00:01]} Ne1+ {[%emt 0:00:04]} ({And not} 31... Rg7 32. Kh3 Bg5 33. Rd1 $17) 32. Rxe1 {[%emt 0:00:09]} (32. Kh3 $142 Nxc2 33. Kxh4) 32... Bxe1 {[%emt 0:00:02]} 33. Nxh6+ {[%emt 0:00:18]} Kh7 {[%emt 0:00:01]} 34. Nf5 {[%emt 0:00:11]} Rd3 {[%emt 0:00:21]} 35. Nh2 {[%emt 0:02:25]} Rg8+ {[%emt 0:00:46]} 36. Kf1 {[%emt 0:00:34]} Bxc3 {[%emt 0:00:48] White must now prevent ...f3.} ({Don't blunder} 36... Rxc3 $2 37. Rxc3 Bxc3 38. Nf3 $19) 37. Kf2 {[%emt 0:02:08]} Rd2+ $2 {[%emt 0:04:38]} (37... a4 $19 38. bxa4 Ba5) 38. Rxd2 $17 {[%emt 0:00:03]} Bxd2 {[%emt 0:00:01][%mdl 4096] Endgame KRB-KNN} 39. Kf3 {[%emt 0:02:20]} Rg1 {[%emt 0:03:36]} 40. Ng4 {[%emt 0:00:07]} Re1 {[%emt 0:00:54]} 41. e5 {[%emt 0:12:07] [#]} Kh8 {[%emt 0:03:01]} (41... Bc3 $1 $17 {[%cal Rc3e5]} 42. Kxf4 Bd2+ 43. Nfe3 Kg7) 42. h6 $15 {[%emt 0:11:19]} Bc1 {[%emt 0:02:26]} ({Black should try} 42... Bc3 $15 43. Kxf4 Kh7) 43. Kf2 $1 $11 {[%emt 0:01:58]} Bd2 {[%emt 0:01:33]} 44. Nh4 {[%emt 0:02:03] Intending Nf6 and mate.} Rh1 {[%emt 0:03:42]} 45. e6 $2 {[%emt 0:02:16][%mdl 8192]} Be1+ $19 {[%emt 0:00:21] Black is clearly winning.} (45... Rxh4 $2 46. e7 Rxg4 47. e8=Q+ Rg8 48. Qe5+ Kh7 49. Qe7+ Kh8 50. Qe5+ Kh7 51. Qxc7+ Kh8 52. Qxb7 $18) 46. Kf3 {[%emt 0:02:09]} Bxh4 {[%emt 0:00:16]} 47. Kxf4 {[%emt 0:00:05]} Kh7 {[%emt 0:01:26] Weighted Error Value: White=0.52/Black=0.31} 0-1

[Event "Czech Open-GM 2022"]
[Site "Pardubice"]
[Date "2022.07.26"]
[Round "5.11"]
[White "Hollan, Martin"]
[Black "Frank, Adam"]
[Result "1-0"]
[ECO "B51"]
[WhiteElo "2399"]
[BlackElo "2313"]
[Annotator "TA"]
[PlyCount "87"]
[EventDate "2022.07.22"]
[EventType "swiss"]
[EventCountry "CZE"]
[SourceTitle "playchess.com"]
[Source "ChessBase"]
[SourceQuality "1"]
[TimeControl "40/5400+30:1800+30"]

{[%evp 9,87,8,27,26,29,21,29,25,27,30,41,41,51,24,38,20,41,35,39,12,27,26,40,44,57,56,60,45,47,59,85,65,66,45,24,28,46,39,41,4,41,0,0,0,27,31,38,26,30,32,88,-54,43,34,27,-2,0,-72,-41,-98,169,161,162,167,269,97,401,371,483,0,0,0,474,407,1316,1323,29992,29992,29992,29993]} 1. e4 {[%emt 0:00:04]} c5 {[%emt 0:00:13]} 2. Nf3 {[%emt 0:00:08]} d6 {[%emt 0:00:03]} 3. Bb5+ {[%emt 0:00:17]} Nd7 {[%emt 0:00:06]} 4. a4 {[%emt 0:00:07][%cal Ba2a4,Ba4a5,Ba5b6][%mdl 32]} Ngf6 {[%emt 0:01:21]} 5. Nc3 {[%emt 0:00:08]} g6 {[%emt 0:00:44]} 6. a5 {[%emt 0:05:04] B51: Sicilian: Moscow Variation (3 Bb5+) without 3...Bd7.} Bg7 {[%emt 0:02:32]} 7. O-O {[%emt 0:02:31]} a6 {[%emt 0:00:05]} 8. Be2 {[%emt 0:04:03] White has an edge.} b5 {[%emt 0:01:27]} 9. axb6 $1 {[%emt 0:01:24]} Bb7 {[%emt 0:00:04]} 10. d3 {[%emt 0:04:07]} O-O {[%emt 0:00:07]} 11. Bg5 {[%emt 0:00:47]} h6 {[%emt 0:03:53] [#]} 12. Bd2 $146 {[%emt 0:06:07]} ({Predecessor:} 12. Be3 Nxb6 13. h3 Qc7 14. Qd2 Kh7 15. Na4 Nbd7 16. c4 Rfb8 17. Nc3 Bc6 18. Ra2 {1-0 (40) Tabatabaei,M (2613)-Lim,Z (2311) Tornelo INT 2021}) 12... Nxb6 {[%emt 0:10:38]} 13. Qc1 {[%emt 0:02:30]} Kh7 {[%emt 0:00:18]} 14. h3 {[%emt 0:00:24]} Nfd7 {[%emt 0:14:03]} 15. Nh2 {[%emt 0:02:21]} d5 {[%emt 0:03:10]} 16. Nxd5 {[%emt 0:11:52]} Nxd5 {[%emt 0:03:01]} 17. exd5 {[%emt 0:00:06]} Bxd5 {[%emt 0:00:06]} 18. Bc3 {[%emt 0:01:23]} Bxc3 {[%emt 0:16:07]} 19. bxc3 {[%emt 0:00:21]} Nf6 {[%emt 0:00:05]} 20. Qe3 {[%emt 0:05:48]} Qc7 {[%emt 0:02:48]} 21. Ra4 {[%emt 0:06:30]} c4 {[%emt 0:06:46]} 22. Rfa1 {[%emt 0:04:58][%cal Rd3c4]} cxd3 {[%emt 0:04:16]} 23. Bxd3 {[%emt 0:00:50]} Kg7 {[%emt 0:01:09]} 24. Bxa6 {[%emt 0:09:27]} Rfb8 {[%emt 0:05:09]} 25. Ng4 {[%emt 0:05:38]} (25. c4 $5 {[%cal Rc4d5]} Be4 26. Qc3 $14) 25... Nxg4 {[%emt 0:07:57]} 26. hxg4 {[%emt 0:00:09] Hoping for Qd4+.} e6 {[%emt 0:06:03]} 27. c4 {[%emt 0:09:47] Chess con chili.} Bc6 {[%emt 0:02:05]} 28. R4a3 {[%emt 0:00:14]} Kh7 {[%emt 0:02:43]} 29. Qc5 {[%emt 0:08:52]} Qd7 {[%emt 0:04:34]} (29... Rd8 $14) 30. Rh3 {[%emt 0:02:49] [#]} (30. Qe5 $16) 30... Qe8 {[%emt 0:01:18]} (30... Rxa6 $1 $15 31. Rxa6 Rb1+ 32. Kh2 Qc7+ 33. Rg3 Rh1+ $1 34. Kxh1 Bxg2+ $1 35. Kxg2 Qxc5) 31. Kh2 {[%emt 0:04:37]} Rb2 {[%emt 0:00:54]} 32. Qe3 {[%emt 0:02:08]} Qf8 {[%emt 0:00:44]} 33. Ra3 {[%emt 0:00:56]} (33. Qc1 $11 Qg7 34. Raa3) 33... Rxc2 {[%emt 0:00:51]} 34. c5 {[%emt 0:00:30]} (34. Kg1 $15) 34... Qg7 $2 {[%emt 0:01:29][%mdl 8192] [#]} (34... Kg8 $17 {stays on course. Strongly threatening ...Qb8+.} 35. Rxh6 Rxf2 $3 {[%mdl 512]} 36. Qxf2 Qxh6+ 37. Rh3 Qg5) 35. g5 $1 $18 {[%emt 0:00:27][%cal Rh3h6]} h5 {[%emt 0:00:25]} 36. Rxh5+ $1 {[%emt 0:00:26]} Kg8 {[%emt 0:00:04]} (36... gxh5 $142 37. Bd3+ Kg8 38. Rxa8+ Bxa8 39. Bxc2 Qb2) 37. Rh3 $2 {[%emt 0:00:34]} (37. Rh4 $18) 37... Qb2 $2 {[%emt 0:01:10][%mdl 8192]} (37... Bd5 $16 {is a better chance.}) 38. Rb3 {[%emt 0:00:11]} Qa1 {[%emt 0:00:06]} 39. Ra3 {[%emt 0:00:50]} ({Less strong is} 39. Bb7 Bxb7 40. Rxb7 Rc1 $16) 39... Qb2 {[%emt 0:00:27]} 40. Rb3 $40 {[%emt 0:00:14][%mdl 128] White has some attack.} Qa1 {[%emt 0:00:27]} 41. Qf4 {[%emt 0:20:35] Intending Rb8+ and mate.} ({Weaker is} 41. Bb7 Bxb7 42. Rxb7 Rc1 $16) 41... Re8 {[%emt 0:20:07] [#]} (41... Rf8 $142 42. Rb8 Rc1) 42. Rh7 $3 {[%emt 0:06:01][%csl Gh7][%cal Rf4f7][%mdl 512]} f5 {[%emt 0:07:33] [#]} (42... Rxf2 43. Qxf2) 43. Qc7 $1 {[%emt 0:01:22][%csl Gh7][%cal Rc7f7]} Rf8 {[%emt 0:00:05] [#]} 44. Rb8 $1 {[%emt 0:00:44] Weighted Error Value: White=0.34/Black=0.55} 1-0